bitfinex-derivatives/quotes_ETHF0:USTF0_20250709
["timestamp","ask_amount","ask_price","bid_price","bid_amount"]
[1752048103733,3.6104,2625.5,2625.4,1.71388]
[1752048103932,1.6312,2625.5,2625.4,1.71388]
[1752048104230,0.6569,2625.5,2625.4,2.35598]
[1752048104435,1.41856,2625.5,2625.4,2.35598]
[1752048104636,1.41856,2625.5,2625.4,1.5943]
[1752048105431,2.39286,2625.5,2625.4,1.5943]
[1752048107338,3.85886585,2625.5,2625.4,1.5943]
[1752048107737,3.85885027,2625.5,2625.4,1.5943]
[1752048108340,5.26337507,2625.5,2625.4,0.9522]
[1752048108835,8.47117507,2625.5,2625.4,0.9522]
[1752048110141,9.74337507,2625.5,2625.4,0.9522]
[1752048112439,8.98171507,2625.5,2624.9,0.636]
[1752048112638,1.4045248,2625.2,2624.9,0.636]
[1752048112839,1.4187,2625.0,2624.9,0.636]
[1752048113243,2.88613229,2625.0,2624.9,0.636]
[1752048113742,2.88613229,2625.0,2624.9,1.2781]
[1752048116039,3.86043229,2625.0,2624.9,1.2781]
[1752048116345,5.26495709,2625.0,2624.9,0.6421]
[1752048116534,0.76186,2624.8,2624.7,0.7143]
[1752048116740,1.41876,2624.8,2624.7,0.7143]
[1752048117042,1.41876,2624.8,2624.7,1.3564]
[1752048117246,3.7975848,2624.8,2624.7,0.0496]
[1752048117550,0.76198,2624.4,2624.3,4.63449]
[1752048117837,0.6569,2624.4,2624.3,4.63449]
[1752048118039,1.41888,2624.4,2624.3,3.8725]
[1752048118241,0.6569,2624.4,2624.3,4.6345]
[1752048118442,0.6569,2624.4,2624.3,5.2766]
[1752048119443,0.76195,2624.5,2624.4,0.76198]
[1752048119644,1.41885,2624.5,2624.4,0.76198]
[1752048119839,1.41885,2624.5,2624.4,1.40408]
[1752048121146,1.41885,2624.5,2624.4,0.6421]
[1752048121334,1.41885,2624.5,2624.4,1.40408]
[1752048123041,0.76198,2624.4,2624.3,0.6647]
[1752048123343,1.41888,2624.4,2624.3,2.0688]
[1752048123545,1.41888,2624.4,2624.3,1.3068]
[1752048124541,1.41888,2624.4,2624.3,2.0688]
[1752048124850,0.6569,2624.4,2624.3,2.0688]
[1752048125041,0.76198,2624.4,2624.3,2.0688]
[1752048125242,1.41888,2624.4,2624.3,2.0688]
[1752048125447,0.76198,2624.4,2624.3,2.0688]
[1752048125647,1.41888,2624.4,2624.3,2.0688]
[1752048126347,0.6569,2624.4,2624.3,2.0688]
[1752048126662,2.17217484,2624.6,2624.3,2.0688]
[1752048126663,2.17217484,2624.6,2624.5,0.76195]
[1752048126842,3.80337484,2624.6,2624.5,1.40405]
[1752048127547,2.39883004,2624.6,2624.5,1.40405]
[1752048128643,1.63691004,2624.6,2624.5,1.40405]
[1752048129146,3.04143484,2624.6,2624.5,1.40405]
[1752048129346,3.80335484,2624.6,2624.4,0.76196]
[1752048129548,0.9377,2624.5,2624.4,0.76196]
[1752048129746,1.5846,2624.5,2624.4,0.76196]
[1752048129947,1.5846,2624.5,2624.4,1.39556]
[1752048130350,0.00571004,2624.6,2624.5,0.76195]
[1752048130544,0.00571004,2624.6,2624.5,1.39555]
[1752048131855,0.65261004,2624.6,2624.5,1.39555]
[1752048133054,3.2078,2625.0,2624.9,0.76183]
[1752048133251,0.9377,2625.4,2624.9,1.6413]
[1752048133557,1.2686,2625.6,2624.9,1.6413]
[1752048133558,3.59844,2625.6,2625.3,0.76171]
[1752048133850,1.4045248,2625.9,2625.4,0.6399]
[1752048134054,0.6469,2625.5,2625.4,1.40158]
[1752048134250,0.6469,2625.5,2625.4,2.03518]
[1752048134445,0.6469,2625.5,2625.4,1.40158]
[1752048134752,0.6469,2625.5,2625.4,2.03518]
[1752048134954,2.3422248,2625.7,2625.6,0.76163]
[1752048135155,4.45522945,2625.7,2625.6,0.76163]
[1752048135351,4.45522945,2625.7,2625.6,0.6336]
[1752048135653,4.45522945,2625.7,2625.4,0.6399]
[1752048135953,0.9377,2625.6,2625.5,0.76165]
[1752048136154,1.5846,2625.6,2625.0,3.2078]
[1752048136354,1.4045248,2625.3,2625.2,0.76173]
[1752048136548,2.0514248,2625.3,2625.2,0.76173]
[1752048137350,2.0514248,2625.3,2625.2,1.39533]
[1752048137551,2.9891248,2625.3,2625.2,1.39533]
[1752048139159,0.6469,2625.3,2625.2,1.39533]
[1752048139558,3.96944,2625.6,2625.4,0.76169]
[1752048139758,0.6469,2625.5,2625.4,1.39529]
[1752048139959,0.6469,2625.5,2625.4,0.76169]
[1752048140155,2.34626,2625.5,2625.3,0.76169]
[1752048140758,2.34626,2625.5,2625.4,0.6336]
[1752048142466,2.34626,2625.5,2625.0,4.5289]
[1752048142467,1.5846,2625.5,2625.0,3.2078]
[1752048142761,1.4045248,2625.1,2625.0,3.9696]
[1752048142958,2.0514248,2625.1,2625.0,3.9696]
[1752048143162,2.0514248,2625.1,2625.0,4.6032]
[1752048143764,0.6469,2625.1,2625.0,4.6032]
[1752048146960,1.40867,2625.1,2625.0,4.6032]
[1752048147157,2.34637,2625.1,2625.0,4.6032]
[1752048147560,1.5846,2625.1,2625.0,4.6032]
[1752048148262,2.34637,2625.1,2625.0,4.6032]
[1752048148464,1.5846,2625.1,2625.0,4.6032]
[1752048150063,0.6469,2625.1,2625.0,4.6032]
[1752048151760,3.2078,2625.6,2625.0,4.8491]
[1752048151960,1.69934,2625.6,2625.4,0.76169]
[1752048152167,1.5846,2625.5,2625.4,1.39529]
[1752048154068,0.6469,2625.5,2625.4,1.39529]
[1752048155767,0.6613,2625.8,2625.7,0.7616]
[1752048155963,1.47066382,2625.8,2625.7,2.4029]
[1752048156163,3.2078,2626.2,2626.0,0.76149]
[1752048156369,2.11788313,2626.1,2626.0,0.76149]
[1752048156868,2.11788313,2626.1,2626.0,1.39509]
[1752048157069,2.11788313,2626.1,2626.0,0.76149]
[1752048157270,2.11788313,2626.1,2626.0,1.39509]
[1752048157668,5.22158793,2626.1,2625.9,0.76152]
[1752048157970,0.9752,2626.0,2625.9,0.76152]
[1752048158171,1.73671,2626.0,2625.8,0.76725004]
[1752048158376,2.3797248,2625.9,2625.8,0.76725004]
[1752048158571,1.6592,2625.9,2625.8,0.76725004]
[1752048158762,0.684,2625.9,2625.8,1.42205004]
[1752048160073,6.0130748,2626.2,2626.0,0.76151]
[1752048160373,2.15404778,2626.1,2626.0,1.41631]
[1752048160570,2.91552778,2626.1,2626.0,0.6548]
[1752048160971,2.91552778,2626.1,2626.0,1.41631]
[1752048161567,2.15404778,2626.1,2626.0,1.41631]
[1752048162675,2.91552778,2626.1,2626.0,0.6548]
[1752048163574,3.89072778,2626.1,2626.0,0.6548]
[1752048164175,3.89072778,2626.1,2626.0,1.41631]
[1752048164375,3.89072778,2626.1,2626.0,0.6548]
[1752048164575,3.12924778,2626.1,2626.0,1.41631]
[1752048166976,3.89072778,2626.1,2626.0,1.41631]
[1752048167273,3.89072778,2626.1,2626.0,0.6548]
[1752048167577,3.89072778,2626.1,2626.0,1.41631]
[1752048168672,3.12924778,2626.1,2626.0,1.41631]
[1752048169580,3.89072778,2626.1,2626.0,1.41631]
[1752048172785,2.42068,2626.1,2626.0,1.41631]
[1752048174977,0.684,2626.1,2626.0,1.41631]
[1752048175383,2.0885248,2626.1,2626.0,1.41631]
[1752048176283,2.0885248,2626.1,2626.0,0.6548]
[1752048176581,3.2078,2626.6,2626.0,3.8626]
[1752048176780,2.0885248,2626.1,2626.0,3.8626]
[1752048177184,2.8500048,2626.1,2626.0,3.8626]
[1752048177378,3.8252048,2626.1,2626.0,3.8626]
[1752048177980,3.0637248,2626.1,2626.0,3.8626]
[1752048178383,3.0637248,2626.1,2626.0,4.62411]
[1752048180485,3.8252048,2626.1,2626.0,3.8626]
[1752048181786,3.8252048,2626.1,2626.0,0.6548]
[1752048182089,3.8252048,2626.1,2626.0,3.8626]
[1752048184185,3.0637248,2626.1,2626.0,4.62411]
[1752048184385,3.8252048,2626.1,2626.0,3.8626]
[1752048185480,0.76148,2626.1,2626.0,4.62411]
[1752048185686,2.8500048,2626.1,2626.0,4.62411]
[1752048185990,2.8500048,2626.1,2626.0,3.8626]
[1752048186187,3.8252048,2626.1,2626.0,3.2078]
[1752048186387,0.76154,2625.9,2625.8,0.00571004]
[1752048186592,3.8252648,2625.9,2625.8,0.00571004]
[1752048187481,7.0330648,2625.9,2625.8,0.00571004]
[1752048188593,8.43966035,2625.9,2625.8,0.00571004]
[1752048189097,0.76166,2625.5,2625.4,3.2078]
[1752048189297,0.76172,2625.3,2625.2,0.6642]
[1752048189489,2.8085448,2625.3,2625.2,0.6642]
[1752048189690,5.20457992,2625.3,2625.2,0.6642]
[1752048189894,5.20457992,2625.3,2625.2,1.3185]
[1752048190085,2.04783512,2625.3,2625.2,1.3185]
[1752048190287,0.6423,2625.3,2625.2,2.08024]
[1752048190486,0.76167,2625.5,2625.3,0.76172]
[1752048190692,2.80881344,2625.4,2625.3,0.6543]
[1752048191090,1.40482344,2625.4,2625.3,0.6543]
[1752048191292,2.04712344,2625.4,2625.3,1.6664]
[1752048191492,2.80881344,2625.4,2625.3,2.934]
[1752048191689,2.80881344,2625.4,2625.3,1.9219]
[1752048193495,1.40399,2625.4,2625.3,1.9219]
[1752048194492,1.40399,2625.4,2625.2,0.76173]
[1752048194696,0.76174,2625.2,2625.1,3.2078]
[1752048194897,2.8085648,2625.2,2625.1,3.8621]
[1752048195991,1.40404,2625.2,2625.1,3.8621]
[1752048196587,0.9905,2625.3,2625.1,3.8621]
[1752048196787,0.6423,2625.2,2625.1,4.62387]
[1752048196993,1.40404,2625.2,2625.1,3.8621]
[1752048197193,0.76174,2625.2,2625.1,3.8621]
[1752048197495,0.76173,2625.3,2625.1,5.63597]
[1752048197893,1.40404,2625.2,2625.1,4.8742]
[1752048198093,1.40404,2625.2,2625.1,6.99257]
[1752048200397,1.40404,2625.2,2625.1,6.2308]
[1752048200600,2.3950248,2625.5,2625.1,6.2308]
[1752048200792,1.4045248,2625.5,2625.2,2.9454]
[1752048200992,2.8084848,2625.5,2625.4,0.6543]
[1752048201199,4.2128294,2625.5,2625.4,0.6543]
[1752048201797,1.40396,2625.5,2625.4,3.8621]
[1752048201991,0.76166,2625.5,2625.4,3.8621]
[1752048202193,3.2078,2626.3,2625.4,4.8742]
[1752048202399,0.76159,2625.8,2625.6,1.4045248]
[1752048202695,0.76159,2625.8,2625.7,1.3307]
[1752048202903,0.76156,2625.9,2625.7,2.0923]
[1752048203098,0.6423,2625.8,2625.7,1.3307]
[1752048203992,0.6423,2625.8,2625.7,2.0923]
[1752048205601,1.40387,2625.8,2625.7,1.3307]
[1752048205996,0.6423,2625.8,2625.7,2.0923]
[1752048206196,0.6423,2625.8,2625.7,5.3001]
[1752048207994,0.6423,2625.8,2625.7,6.3122]
[1752048209595,1.40387,2625.8,2625.7,5.5506]
[1752048209800,1.40387,2625.8,2625.7,4.5385]
[1752048210196,1.40387,2625.8,2625.7,5.3001]
[1752048210503,0.6423,2625.8,2625.7,5.3001]
[1752048210702,0.6423,2625.8,2625.7,4.5385]
[1752048210903,0.6423,2625.8,2625.7,5.3001]
[1752048212401,3.2078,2626.3,2625.7,5.5506]
[1752048212705,0.76149,2626.1,2626.0,3.2078]
[1752048212904,1.40379,2626.1,2626.0,3.8621]
[1752048213099,2.39429,2626.1,2626.0,4.5409]
[1752048213504,0.6423,2626.1,2626.0,5.30241]
[1752048213710,1.40378,2626.1,2626.0,4.5409]
[1752048214305,2.39428,2626.1,2626.0,4.5409]
[1752048214505,1.6328,2626.1,2626.0,4.5409]
[1752048215206,1.75194,2626.3,2626.0,4.5409]
[1752048215408,0.6423,2626.1,2626.0,4.5409]
[1752048216205,1.6328,2626.1,2626.0,4.5409]
[1752048216409,0.6423,2626.1,2626.0,4.5409]
[1752048218206,0.6423,2626.1,2626.0,5.30241]
[1752048218404,1.8817,2626.5,2626.1,0.76147]
[1752048218405,0.7614,2626.4,2626.1,0.76147]
[1752048218709,0.7614,2626.4,2626.3,3.2078]
[1752048218902,2.78275828,2626.4,2626.3,3.2078]
[1752048219107,2.78275828,2626.4,2626.3,3.8939]
[1752048221113,3.76885828,2626.4,2626.3,3.8939]
[1752048221315,3.76885828,2626.4,2626.3,3.2078]
[1752048221514,3.76885828,2626.4,2626.3,3.8939]
[1752048221715,3.76885828,2626.4,2626.3,3.2078]
[1752048221916,3.76885828,2626.4,2626.0,3.8866]
[1752048221917,0.76148,2626.1,2626.0,3.8866]
[1752048222122,1.39878,2626.1,2626.0,4.5727]
[1752048222419,1.39878,2626.1,2626.0,3.8866]
[1752048222620,1.39878,2626.1,2626.0,4.5727]
[1752048223321,2.38488,2626.1,2626.0,4.5727]
[1752048223715,2.38488,2626.1,2626.0,3.2078]
[1752048223916,5.04981583,2626.1,2626.0,3.2078]
[1752048225019,5.04981583,2626.1,2625.7,0.6518]
[1752048225020,0.76157,2625.8,2625.7,3.8596]
[1752048225223,1.39887,2625.8,2625.7,3.8596]
[1752048225418,2.38497,2625.8,2625.7,4.5457]
[1752048225615,1.6234,2625.8,2625.7,4.5457]
[1752048225819,0.6373,2625.8,2625.7,4.5457]
[1752048228427,0.6373,2625.8,2625.7,5.3073]
[1752048228825,1.39887,2625.8,2625.7,4.5457]
[1752048229923,0.6373,2625.8,2625.7,4.5457]
[1752048231325,0.6373,2625.8,2625.7,5.3073]
[1752048231527,0.9861,2626.1,2625.8,0.76157]
[1752048231725,0.6373,2625.9,2625.8,3.0161]
[1752048232025,2.02362828,2625.9,2625.8,2.0425]
[1752048233022,2.02362828,2625.9,2625.8,2.80407]
[1752048233236,2.02362828,2625.9,2625.8,2.0425]
[1752048234626,2.78516828,2625.9,2625.8,2.0425]
[1752048234825,2.02362828,2625.9,2625.8,1.3564]
[1752048235025,2.02362828,2625.9,2625.7,4.62118]
[1752048235227,0.6373,2625.9,2625.8,0.6861]
[1752048235425,2.0236401,2625.9,2625.8,0.6861]
[1752048238229,2.7851801,2625.9,2625.8,0.6861]
[1752048240428,2.0236401,2625.9,2625.8,0.6861]
[1752048241325,2.7851801,2625.9,2625.8,0.6861]
[1752048242029,2.0236401,2625.9,2625.8,2.42127]
[1752048242328,3.96922,2626.4,2625.8,2.9359]
[1752048242528,1.38796661,2626.3,2626.1,0.76148]
[1752048242727,0.76142,2626.4,2626.2,1.3363]
[1752048242933,2.02517894,2626.3,2626.2,1.3363]
[1752048244452,1.38787894,2626.3,2626.2,3.07136]
[1752048244731,1.38787894,2626.3,2626.2,4.35246]
[1752048245032,2.02517894,2626.3,2626.2,4.35246]
[1752048245227,1.38787894,2626.3,2626.2,4.35246]
[1752048245630,2.02517894,2626.3,2626.2,4.35246]
[1752048246432,2.78660894,2626.3,2626.2,1.3363]
[1752048246631,0.76146,2626.2,2626.0,3.2078]
[1752048246829,0.6373,2626.1,2626.0,3.96931]
[1752048247034,0.6373,2626.1,2626.0,3.8939]
[1752048248037,0.6373,2626.1,2626.0,4.65542]
[1752048248732,0.6373,2626.1,2626.0,3.8939]
[1752048249336,1.39879,2626.1,2626.0,3.8939]
[1752048249635,0.6373,2626.1,2626.0,3.8939]
[1752048250030,2.78396209,2626.1,2626.0,0.6861]
[1752048250238,0.76152,2626.0,2625.9,0.6875]
[1752048251029,1.38517209,2626.0,2625.9,3.02055]
[1752048251429,2.0599248,2626.4,2625.9,2.259]
[1752048251634,2.14694292,2626.3,2626.1,0.76149]
[1752048251829,1.44065,2626.3,2626.2,6.7878]
[1752048252035,2.14704351,2626.3,2626.2,6.7878]
[1752048252240,2.82624351,2626.3,2626.2,5.8504]
[1752048252534,1.38559351,2626.3,2626.2,6.61186]
[1752048252742,1.38559351,2626.3,2626.2,8.9537848]
[1752048253240,0.9501,2626.8,2626.2,8.1923248]
[1752048253437,1.38707549,2626.7,2626.2,8.1923248]
[1752048253739,1.38707549,2626.6,2626.5,0.76138]
[1752048253937,2.06627549,2626.6,2626.5,0.76138]
[1752048256738,1.38707549,2626.6,2626.5,0.76138]
[1752048257440,0.76127,2626.9,2626.7,0.76131]
[1752048257644,2.06270976,2626.8,2626.7,0.76131]
[1752048257941,1.38350976,2626.8,2626.7,0.76131]
[1752048258137,2.06270976,2626.8,2626.7,1.39541]
[1752048258340,1.38350976,2626.8,2626.7,1.39541]
[1752048258739,2.06270976,2626.8,2626.7,1.39541]
[1752048258942,2.06270976,2626.8,2626.7,0.6341]
[1752048259138,2.06270976,2626.8,2626.6,0.76133]
[1752048259340,0.6792,2626.8,2626.7,0.6341]
[1752048259538,2.06222959,2626.8,2626.7,0.6341]
[1752048261243,2.82351959,2626.8,2626.7,0.6341]
[1752048261542,3.77361959,2626.8,2626.7,0.6341]
[1752048263244,2.39059,2626.8,2626.7,0.6341]
[1752048263845,1.44049,2626.8,2626.7,0.6341]
[1752048264846,0.6792,2626.8,2626.7,0.6341]
[1752048265148,0.76128,2626.9,2626.7,1.39542]
[1752048265649,0.6792,2626.8,2626.7,0.6341]
[1752048265844,1.44049,2626.8,2626.7,0.6341]
[1752048266045,0.6792,2626.8,2626.7,0.6341]
[1752048266246,1.44049,2626.8,2626.7,0.6341]
[1752048266446,0.6792,2626.8,2626.7,0.6341]
[1752048267348,2.0593431,2626.8,2626.7,0.6341]
[1752048268351,2.0593431,2626.8,2626.7,1.39542]
[1752048269751,2.0593431,2626.8,2626.7,2.03402]
[1752048270049,2.0593431,2626.8,2626.7,2.97142]
[1752048270845,2.0593431,2626.8,2626.7,2.03402]
[1752048272149,2.0600059,2626.8,2626.7,2.97142]
[1752048272750,1.3808059,2626.8,2626.7,2.97142]
[1752048273050,1.3808059,2626.8,2626.7,4.27702]
[1752048273350,0.76121,2627.1,2626.7,3.5157]
[1752048273654,1.38108075,2627.0,2626.9,0.76125]
[1752048273846,2.06028075,2627.0,2626.9,1.39535]
[1752048274854,2.06028075,2627.0,2626.9,0.6341]
[1752048275053,2.06028075,2627.0,2626.9,1.39536]
[1752048276352,1.38108075,2627.0,2626.9,1.39536]
[1752048276554,2.06028075,2627.0,2626.9,1.39536]
[1752048277942,2.06028075,2627.0,2626.9,2.33196]
[1752048278152,2.06028075,2627.0,2626.9,3.61456]
[1752048279255,2.06028075,2627.0,2626.9,6.82236]
[1752048280356,1.38108075,2627.0,2626.9,6.82236]
[1752048281948,0.76116,2627.3,2626.9,6.0611]
[1752048282143,0.76122,2627.1,2627.0,0.76122]
[1752048282348,2.83257014,2627.1,2627.0,0.76123]
[1752048282544,2.83257014,2627.1,2626.9,3.96904]
[1752048282857,1.45122,2627.1,2627.0,0.668]
[1752048283048,2.83260921,2627.1,2627.0,1.3252]
[1752048283248,2.83260921,2627.1,2627.0,2.08643]
[1752048283451,1.38138921,2627.1,2627.0,3.02303]
[1752048283651,2.07138921,2627.1,2627.0,3.02303]
[1752048284248,2.07138921,2627.1,2627.0,2.08643]
[1752048285152,2.83259921,2627.1,2627.0,2.08643]
[1752048285453,2.07138921,2627.1,2627.0,2.08643]
[1752048285654,2.07138921,2627.1,2627.0,1.3252]
[1752048285854,2.07138921,2627.1,2627.0,0.6572]
[1752048286056,3.10098921,2627.1,2627.0,1.3252]
[1752048286449,3.10098921,2627.1,2627.0,2.08643]
[1752048286954,2.07138921,2627.1,2627.0,2.08643]
[1752048287254,0.69,2627.1,2627.0,2.08643]
[1752048287554,0.69,2627.1,2627.0,4.4275548]
[1752048287749,0.69,2627.1,2627.0,5.7178548]
[1752048288352,0.69,2627.1,2627.0,4.7812548]
[1752048290559,0.69,2627.1,2627.0,5.7178548]
[1752048291363,0.69,2627.1,2627.0,4.31333]
[1752048291662,0.69,2627.1,2627.0,5.7178548]
[1752048291859,0.76111,2627.5,2627.0,9.9566248]
[1752048292065,1.38064711,2627.4,2627.3,2.1656748]
[1752048292259,1.38064711,2627.4,2627.3,5.7040748]
[1752048292466,2.07064711,2627.4,2627.3,2.8053748]
[1752048292961,2.07064711,2627.4,2627.3,1.40085]
[1752048293161,1.7196,2627.4,2627.3,2.06885]
[1752048294062,1.7196,2627.4,2627.2,3.96896]
[1752048294368,1.79075,2627.3,2627.2,3.2078]
[1752048294568,5.8204748,2627.3,2627.2,3.2078]
[1752048295065,4.41595,2627.3,2627.2,3.2078]
[1752048295967,5.79589437,2627.3,2627.2,3.2078]
[1752048300677,0.76118,2627.2,2627.1,0.00571004]
[1752048300872,5.18812437,2627.2,2627.1,0.00571004]
[1752048303180,3.86072437,2627.2,2627.1,0.00571004]
[1752048303386,2.06994437,2627.2,2627.1,2.37152004]
[1752048303677,2.83112437,2627.2,2627.1,0.67371004]
[1752048303879,3.86072437,2627.2,2627.1,0.67371004]
[1752048304380,2.06994437,2627.2,2627.1,1.43492004]
[1752048304679,2.06994437,2627.2,2627.1,0.67371004]
[1752048304980,2.83112437,2627.2,2627.1,0.67371004]
[1752048305480,3.86072437,2627.2,2627.1,0.67371004]
[1752048308080,3.09954437,2627.2,2627.1,0.67371004]
[1752048308382,2.06994437,2627.2,2627.1,0.67371004]
[1752048308679,2.06994437,2627.2,2627.1,1.43491004]
[1752048309878,2.06994437,2627.2,2627.1,0.67371004]
[1752048310383,2.06994437,2627.2,2627.1,1.43492004]
[1752048311182,2.06994437,2627.2,2627.1,0.67371004]
[1752048311383,3.02344437,2627.2,2627.1,0.67371004]
[1752048311983,3.78462437,2627.2,2627.1,0.67371004]
[1752048313286,3.78462437,2627.2,2627.1,0.00571004]
[1752048313477,3.78462437,2627.2,2627.1,0.68941004]
[1752048313785,3.78462437,2627.2,2627.1,0.00571004]
[1752048315581,5.65582437,2627.2,2627.1,0.00571004]
[1752048317784,10.65582437,2627.2,2627.1,0.00571004]
[1752048318480,5.65582437,2627.2,2627.1,0.00571004]
[1752048319674,4.40722437,2627.2,2627.1,0.00571004]
[1752048319876,3.78462437,2627.2,2627.1,0.68941004]
[1752048322188,2.78342437,2627.2,2627.1,0.68941004]
[1752048322383,1.37994437,2627.2,2627.1,0.68941004]
[1752048322585,2.02224437,2627.2,2627.1,0.68941004]
[1752048322984,2.78342437,2627.2,2627.1,0.68941004]
[1752048325286,3.73692437,2627.2,2627.1,0.68941004]
[1752048326992,3.73692437,2627.2,2627.1,0.00571004]
[1752048327392,5.69832437,2627.2,2627.1,0.00571004]
[1752048332793,5.69815114,2627.2,2627.1,0.00571004]
[1752048333696,4.38985114,2627.2,2627.1,0.00571004]
[1752048333893,5.72225114,2627.2,2627.1,0.00571004]
[1752048341498,4.38985114,2627.2,2627.1,0.00571004]
[1752048343000,0.76126,2626.9,2626.8,0.6654]
[1752048343194,1.44796,2626.9,2626.8,1.2972]
[1752048343403,2.82773114,2626.9,2626.8,1.2972]
[1752048348607,2.06647114,2626.9,2626.8,2.2446]
[1752048348904,2.82773114,2626.9,2626.8,2.2446]
[1752048349403,2.82773114,2626.9,2626.8,1.2972]
[1752048354512,2.82773114,2626.9,2626.8,2.6218]
[1752048356713,3.78303114,2626.9,2626.8,2.6218]
[1752048357017,3.78303114,2626.9,2626.8,0.6654]
[1752048357322,3.78303114,2626.9,2626.8,1.2972]
[1752048358007,2.82773114,2626.9,2626.8,1.2972]
[1752048369312,2.82773114,2626.9,2626.8,2.2612]
[1752048369516,2.82773114,2626.9,2626.8,1.2972]
[1752048378823,2.82773114,2626.9,2626.8,1.2972]
[1752048384831,2.82773114,2626.9,2626.8,2.31779558]
[1752048390234,2.06647114,2626.9,2626.8,2.31779558]
[1752048390435,2.82773114,2626.9,2626.8,2.31779558]
[1752048400945,0.76135,2626.6,2626.5,3.2078]
[1752048401136,3.48265,2626.6,2626.2,4.06007416]
[1752048401343,1.78203558,2626.3,2626.2,0.6439]
[1752048401644,4.74100672,2626.3,2626.2,0.6439]
[1752048402241,3.97956672,2626.3,2626.0,3.41617416]
[1752048402543,0.76152,2626.0,2625.9,6.62397416]
[1752048402743,1.40492,2626.0,2625.9,7.30137416]
[1752048403345,1.40492,2626.0,2625.9,3.8852]
[1752048403541,0.76152,2626.0,2625.9,4.5633]
[1752048403843,1.40492,2626.0,2625.9,4.5633]
[1752048404047,0.76152,2626.0,2625.9,4.5633]
[1752048404344,1.40492,2626.0,2625.9,5.5216]
[1752048406141,1.40492,2626.0,2625.9,4.5633]
[1752048406551,0.76164,2625.6,2625.5,3.41617416]
[1752048406744,1.40504,2625.6,2625.5,4.09357416]
[1752048406949,2.34084,2625.6,2625.5,4.09357416]
[1752048407148,2.34084,2625.6,2625.5,0.6774]
[1752048407547,0.7617,2625.4,2625.3,4.10087416]
[1752048407747,1.4051,2625.4,2625.3,4.10087416]
[1752048407951,1.4051,2625.4,2625.3,0.6847]
[1752048408244,4.5646,2625.8,2625.3,1.44642]
[1752048408549,1.6974,2625.8,2625.4,6.33207283]
[1752048408751,1.37601796,2625.7,2625.4,4.40187283]
[1752048408949,1.6974,2625.8,2625.6,3.2078]
[1752048409249,1.6974,2625.8,2625.7,0.6626]
[1752048409450,3.71602849,2625.8,2625.7,0.6626]
[1752048410149,2.3408,2625.8,2625.7,0.6626]
[1752048411050,3.7155913,2625.8,2625.7,0.6626]
[1752048411249,0.76167,2625.5,2625.4,0.9583]
[1752048411449,0.76167,2625.6,2625.4,1.6444]
[1752048411650,0.76166,2625.6,2625.4,1.6444]
[1752048411851,0.76166,2625.6,2625.5,0.6774]
[1752048412051,1.40506,2625.6,2625.5,0.6774]
[1752048412252,1.40506,2625.6,2625.4,0.6861]
[1752048412749,0.6434,2625.6,2625.5,0.6774]
[1752048413449,0.76163,2625.7,2625.5,0.6774]
[1752048413650,0.76163,2625.7,2625.5,1.6357]
[1752048413951,0.6434,2625.6,2625.5,1.6357]
[1752048414348,1.40504,2625.6,2625.5,1.6357]
[1752048414952,1.40504,2625.6,2625.5,0.6774]
[1752048420258,1.40504,2625.6,2625.5,3.8852]
[1752048421359,1.40504,2625.6,2625.5,6.1878]
[1752048423161,1.40504,2625.6,2625.5,5.2295]
[1752048424756,1.40504,2625.6,2625.5,3.2078]
[1752048425151,2.34084,2625.6,2625.5,3.2078]
[1752048425359,1.40504,2625.6,2625.5,3.8852]
[1752048425553,1.40504,2625.6,2625.5,3.2078]
[1752048425956,2.34084,2625.6,2625.5,3.2078]
[1752048426157,2.34084,2625.6,2625.5,3.8852]
[1752048428464,1.40504,2625.6,2625.5,3.8852]
[1752048429865,0.6434,2625.6,2625.5,5.28947283]
[1752048430062,0.76154,2626.0,2625.5,11.29567283]
[1752048430268,0.7615,2626.1,2625.9,4.61207283]
[1752048430461,0.7615,2626.1,2626.0,4.03887283]
[1752048430766,0.76719004,2626.2,2626.0,5.04507283]
[1752048431067,1.3778309,2626.1,2626.0,2.70947283]
[1752048431267,0.76719004,2626.2,2626.0,3.47097283]
[1752048431268,0.76718004,2626.2,2626.0,3.47097283]
[1752048432464,0.76719004,2626.2,2626.1,1.6543]
[1752048433467,1.41329004,2626.2,2626.1,0.6481]
[1752048433662,0.76149,2626.1,2626.0,2.06137283]
[1752048433862,1.40759,2626.1,2626.0,2.70947283]
[1752048435560,0.76149,2626.1,2626.0,3.71567283]
[1752048436365,1.40759,2626.1,2626.0,1.3052]
[1752048436663,1.40759,2626.1,2626.0,0.6571]
[1752048436868,2.43939,2626.1,2626.0,1.3052]
[1752048437071,1.40759,2626.1,2626.0,1.3052]
[1752048439770,3.81561334,2626.1,2626.0,1.3052]
[1752048440668,2.78381334,2626.1,2626.0,1.3052]
[1752048446773,3.81561334,2626.1,2626.0,1.3052]
[1752048447073,0.76152,2626.0,2625.9,3.2078]
[1752048447269,3.81564334,2626.0,2625.9,3.2078]
[1752048447769,3.81564334,2626.0,2625.9,3.8559]
[1752048449773,2.78384334,2626.0,2625.9,3.8559]
[1752048450174,3.81564334,2626.0,2625.9,3.8559]
[1752048455075,3.81564334,2626.0,2625.9,0.6481]
[1752048455268,0.76158,2625.8,2625.7,3.8794]
[1752048455466,2.43948,2625.8,2625.7,0.6716]
[1752048455671,3.8201023,2625.8,2625.7,0.6716]
[1752048457178,3.8201023,2625.8,2625.7,1.3197]
[1752048457374,3.8201023,2625.8,2625.7,0.6716]
[1752048458078,3.8201023,2625.8,2625.7,1.3141]
[1752048459880,3.8201023,2625.8,2625.7,0.6425]
[1752048461782,2.7883023,2625.8,2625.7,0.6425]
[1752048463773,2.1422023,2625.8,2625.7,0.6425]
[1752048463980,3.8153023,2625.8,2625.7,0.6425]
[1752048465078,2.8207023,2625.8,2625.7,0.6425]
[1752048466180,2.1422023,2625.8,2625.7,0.6425]
[1752048466482,2.1422023,2625.8,2625.7,1.6565]
[1752048466679,2.1422023,2625.8,2625.7,2.923]